{"text_format":"1","workbook":"xlsx","n_sheets":5,"sheets":["Janvier","Janvier 2024","synthèse","Employée","Datas"],"not_rendered":{"charts":0,"images":0,"macros":1,"external_links":2,"defined_names":22,"comments":0,"pivot_tables":0},"unopened":[],"bounds":{"document_bytes":16777216,"sheet_cells":100000,"rows_first":2000,"rows_last":500,"rows_between":2000,"halvings":0,"cell_chars":16384,"cell_head_chars":4096},"cells_cut":0,"cells_raw":0,"read":"whole","date_system":"1900"}

{"sheet":"Janvier","index":0,"n_rows":47,"n_cols":34,"rows_kept":47,"cut":false,"hidden":true,"merged":[[3,2,3,32],[1,3,1,4],[1,6,1,8],[1,10,1,11],[1,13,1,16],[1,18,1,21],[1,26,1,29]]}
[null,"Calendrier des locations"]
[null,"Clé de codage","A","Arrivée",null,"D","Départ",null,null,null,null,null,"LS","Dépot Départ/arrivée sale",null,null,null,"LP","Récup Départ/arrivée propre",null,null,null,null,null,null,"D/A","Départ et arrivée simultanée",null,null,null,"EMMA","SABINE","BENICIA","CARO"]
[null,null,null,null,null,null,null,null,null,null,null,null,null,null,null,null,null,null,null,null,null,null,null,null,null,null,null,null,null,null,null,null,null,"Entrez l’année :"]
[null,"Janvier","Dates des réservations",null,null,null,null,null,null,null,null,null,null,null,null,null,null,null,null,null,null,null,null,null,null,null,null,null,null,null,null,null,null,2023]
[null,null,{"$f":"TEXT(WEEKDAY(DATE(AnnéeCalendrier,1,1),1),\"jjj\")","v":"dim"},{"$f":"TEXT(WEEKDAY(DATE(AnnéeCalendrier,1,2),1),\"jjj\")","v":"lun"},{"$f":"TEXT(WEEKDAY(DATE(AnnéeCalendrier,1,3),1),\"jjj\")","v":"mar"},{"$f":"TEXT(WEEKDAY(DATE(AnnéeCalendrier,1,4),1),\"jjj\")","v":"mer"},{"$f":"TEXT(WEEKDAY(DATE(AnnéeCalendrier,1,5),1),\"jjj\")","v":"jeu"},{"$f":"TEXT(WEEKDAY(DATE(AnnéeCalendrier,1,6),1),\"jjj\")","v":"ven"},{"$f":"TEXT(WEEKDAY(DATE(AnnéeCalendrier,1,7),1),\"jjj\")","v":"sam"},{"$f":"TEXT(WEEKDAY(DATE(AnnéeCalendrier,1,8),1),\"jjj\")","v":"dim"},{"$f":"TEXT(WEEKDAY(DATE(AnnéeCalendrier,1,9),1),\"jjj\")","v":"lun"},{"$f":"TEXT(WEEKDAY(DATE(AnnéeCalendrier,1,10),1),\"jjj\")","v":"mar"},{"$f":"TEXT(WEEKDAY(DATE(AnnéeCalendrier,1,11),1),\"jjj\")","v":"mer"},{"$f":"TEXT(WEEKDAY(DATE(AnnéeCalendrier,1,12),1),\"jjj\")","v":"jeu"},{"$f":"TEXT(WEEKDAY(DATE(AnnéeCalendrier,1,13),1),\"jjj\")","v":"ven"},{"$f":"TEXT(WEEKDAY(DATE(AnnéeCalendrier,1,14),1),\"jjj\")","v":"sam"},{"$f":"TEXT(WEEKDAY(DATE(AnnéeCalendrier,1,15),1),\"jjj\")","v":"dim"},{"$f":"TEXT(WEEKDAY(DATE(AnnéeCalendrier,1,16),1),\"jjj\")","v":"lun"},{"$f":"TEXT(WEEKDAY(DATE(AnnéeCalendrier,1,17),1),\"jjj\")","v":"mar"},{"$f":"TEXT(WEEKDAY(DATE(AnnéeCalendrier,1,18),1),\"jjj\")","v":"mer"},{"$f":"TEXT(WEEKDAY(DATE(AnnéeCalendrier,1,19),1),\"jjj\")","v":"jeu"},{"$f":"TEXT(WEEKDAY(DATE(AnnéeCalendrier,1,20),1),\"jjj\")","v":"ven"},{"$f":"TEXT(WEEKDAY(DATE(AnnéeCalendrier,1,21),1),\"jjj\")","v":"sam"},{"$f":"TEXT(WEEKDAY(DATE(AnnéeCalendrier,1,22),1),\"jjj\")","v":"dim"},{"$f":"TEXT(WEEKDAY(DATE(AnnéeCalendrier,1,23),1),\"jjj\")","v":"lun"},{"$f":"TEXT(WEEKDAY(DATE(AnnéeCalendrier,1,24),1),\"jjj\")","v":"mar"},{"$f":"TEXT(WEEKDAY(DATE(AnnéeCalendrier,1,25),1),\"jjj\")","v":"mer"},{"$f":"TEXT(WEEKDAY(DATE(AnnéeCalendrier,1,26),1),\"jjj\")","v":"jeu"},{"$f":"TEXT(WEEKDAY(DATE(AnnéeCalendrier,1,27),1),\"jjj\")","v":"ven"},{"$f":"TEXT(WEEKDAY(DATE(AnnéeCalendrier,1,28),1),\"jjj\")","v":"sam"},{"$f":"TEXT(WEEKDAY(DATE(AnnéeCalendrier,1,29),1),\"jjj\")","v":"dim"},{"$f":"TEXT(WEEKDAY(DATE(AnnéeCalendrier,1,30),1),\"jjj\")","v":"lun"},{"$f":"TEXT(WEEKDAY(DATE(AnnéeCalendrier,1,31),1),\"jjj\")","v":"mar"}]
[null,"Nom du logement","1","2","3","4","5","6","7","8","9","10","11","12","13","14","15","16","17","18","19","20","21","22","23","24","25","26","27","28","29","30","31","Total des jours"]
[null,null,null,null,null,null,null,null,null,null,null,null,null,null,null,null,null,null,null,null,null,null,null,null,null,null,null,null,null,null,null,null,null,{"$f":"COUNTA(#REF!)","v":1}]
[null,null,null,null,null,null,null,null,null,null,null,null,null,null,null,null,null,null,null,null,null,null,null,null,null,null,null,null,null,null,null,null,null,{"$f":"COUNTA(#REF!)","v":1}]
[null,null,null,null,null,null,null,null,null,null,null,null,null,null,null,null,null,null,null,null,null,null,null,null,null,null,null,null,null,null,null,null,null,{"$f":"COUNTA(#REF!)","v":1}]
[null,null,null,null,null,null,null,null,null,null,null,null,null,null,null,null,null,null,null,null,null,null,null,null,null,null,null,null,null,null,null,null,null,{"$f":"COUNTA(#REF!)","v":1}]
[null,null,null,null,null,null,null,null,null,null,null,null,null,null,null,null,null,null,null,null,null,null,null,null,null,null,null,null,null,null,null,null,null,{"$f":"COUNTA(#REF!)","v":1}]
[null,null,null,null,null,null,null,null,null,null,null,null,null,null,null,null,null,null,null,null,null,null,null,null,null,null,null,null,null,null,null,null,null,{"$f":"COUNTA(#REF!)","v":1}]
[null,null,null,null,null,null,null,null,null,null,null,null,null,null,null,null,null,null,null,null,null,null,null,null,null,null,null,null,null,null,null,null,null,{"$f":"COUNTA(#REF!)","v":1}]
[null,null,null,null,null,null,null,null,null,null,null,null,null,null,null,null,null,null,null,null,null,null,null,null,null,null,null,null,null,null,null,null,null,{"$f":"COUNTA(#REF!)","v":1}]
[null,null,null,null,null,null,null,null,null,null,null,null,null,null,null,null,null,null,null,null,null,null,null,null,null,null,null,null,null,null,null,null,null,{"$f":"COUNTA(#REF!)","v":1}]
[null,null,null,null,null,null,null,null,null,null,null,null,null,null,null,null,null,null,null,null,null,null,null,null,null,null,null,null,null,null,null,null,null,{"$f":"COUNTA(#REF!)","v":1}]
[null,null,null,null,null,null,null,null,null,null,null,null,null,null,null,null,null,null,null,null,null,null,null,null,null,null,null,null,null,null,null,null,null,{"$f":"COUNTA(#REF!)","v":1}]
[null,null,null,null,null,null,null,null,null,null,null,null,null,null,null,null,null,null,null,null,null,null,null,null,null,null,null,null,null,null,null,null,null,{"$f":"COUNTA(#REF!)","v":1}]
[null,null,null,null,null,null,null,null,null,null,null,null,null,null,null,null,null,null,null,null,null,null,null,null,null,null,null,null,null,null,null,null,null,{"$f":"COUNTA(#REF!)","v":1}]
[null,null,null,null,null,null,null,null,null,null,null,null,null,null,null,null,null,null,null,null,null,null,null,null,null,null,null,null,null,null,null,null,null,{"$f":"COUNTA(#REF!)","v":1}]
[null,null,null,null,null,null,null,null,null,null,null,null,null,null,null,null,null,null,null,null,null,null,null,null,null,null,null,null,null,null,null,null,null,{"$f":"COUNTA(#REF!)","v":1}]
[null,null,null,null,null,null,null,null,null,null,null,null,null,null,null,null,null,null,null,null,null,null,null,null,null,null,null,null,null,null,null,null,null,{"$f":"COUNTA(#REF!)","v":1}]
[null,null,null,null,null,null,null,null,null,null,null,null,null,null,null,null,null,null,null,null,null,null,null,null,null,null,null,null,null,null,null,null,null,{"$f":"COUNTA(#REF!)","v":1}]
[null,null,null,null,null,null,null,null,null,null,null,null,null,null,null,null,null,null,null,null,null,null,null,null,null,null,null,null,null,null,null,null,null,{"$f":"COUNTA(#REF!)","v":1}]
[null,null,null,null,null,null,null,null,null,null,null,null,null,null,null,null,null,null,null,null,null,null,null,null,null,null,null,null,null,null,null,null,null,{"$f":"COUNTA(#REF!)","v":1}]
[null,null,null,null,null,null,null,null,null,null,null,null,null,null,null,null,null,null,null,null,null,null,null,null,null,null,null,null,null,null,null,null,null,{"$f":"COUNTA(#REF!)","v":1}]
[null,null,null,null,null,null,null,null,null,null,null,null,null,null,null,null,null,null,null,null,null,null,null,null,null,null,null,null,null,null,null,null,null,{"$f":"COUNTA(#REF!)","v":1}]
[null,null,null,null,null,null,null,null,null,null,null,null,null,null,null,null,null,null,null,null,null,null,null,null,null,null,null,null,null,null,null,null,null,{"$f":"COUNTA(#REF!)","v":1}]
[null,null,null,null,null,null,null,null,null,null,null,null,null,null,null,null,null,null,null,null,null,null,null,null,null,null,null,null,null,null,null,null,null,{"$f":"COUNTA(#REF!)","v":1}]
[null,null,null,null,null,null,null,null,null,null,null,null,null,null,null,null,null,null,null,null,null,null,null,null,null,null,null,null,null,null,null,null,null,{"$f":"COUNTA(#REF!)","v":1}]
[null,null,null,null,null,null,null,null,null,null,null,null,null,null,null,null,null,null,null,null,null,null,null,null,null,null,null,null,null,null,null,null,null,{"$f":"COUNTA(#REF!)","v":1}]
[null,null,null,null,null,null,null,null,null,null,null,null,null,null,null,null,null,null,null,null,null,null,null,null,null,null,null,null,null,null,null,null,null,{"$f":"COUNTA(#REF!)","v":1}]
[null,null,null,null,null,null,null,null,null,null,null,null,null,null,null,null,null,null,null,null,null,null,null,null,null,null,null,null,null,null,null,null,null,{"$f":"COUNTA(#REF!)","v":1}]
[null,null,null,null,null,null,null,null,null,null,null,null,null,null,null,null,null,null,null,null,null,null,null,null,null,null,null,null,null,null,null,null,null,{"$f":"COUNTA(#REF!)","v":1}]
[null,null,null,null,null,null,null,null,null,null,null,null,null,null,null,null,null,null,null,null,null,null,null,null,null,null,null,null,null,null,null,null,null,{"$f":"COUNTA(#REF!)","v":1}]
[null,null,null,null,null,null,null,null,null,null,null,null,null,null,null,null,null,null,null,null,null,null,null,null,null,null,null,null,null,null,null,null,null,{"$f":"COUNTA(#REF!)","v":1}]
[null,null,null,null,null,null,null,null,null,null,null,null,null,null,null,null,null,null,null,null,null,null,null,null,null,null,null,null,null,null,null,null,null,{"$f":"COUNTA(#REF!)","v":1}]
[null,null,null,null,null,null,null,null,null,null,null,null,null,null,null,null,null,null,null,null,null,null,null,null,null,null,null,null,null,null,null,null,null,{"$f":"COUNTA(#REF!)","v":1}]
[null,null,null,null,null,null,null,null,null,null,null,null,null,null,null,null,null,null,null,null,null,null,null,null,null,null,null,null,null,null,null,null,null,{"$f":"COUNTA(#REF!)","v":1}]
[null,null,null,null,null,null,null,null,null,null,null,null,null,null,null,null,null,null,null,null,null,null,null,null,null,null,null,null,null,null,null,null,null,{"$f":"COUNTA(#REF!)","v":1}]
[null,null,null,null,null,null,null,null,null,null,null,null,null,null,null,null,null,null,null,null,null,null,null,null,null,null,null,null,null,null,null,null,null,{"$f":"COUNTA(#REF!)","v":1}]
[null,null,null,null,null,null,null,null,null,null,null,null,null,null,null,null,null,null,null,null,null,null,null,null,null,null,null,null,null,null,null,null,null,{"$f":"COUNTA(#REF!)","v":1}]
[null,null,null,null,null,null,null,null,null,null,null,null,null,null,null,null,null,null,null,null,null,null,null,null,null,null,null,null,null,null,null,null,null,{"$f":"COUNTA(#REF!)","v":1}]
[null,null,null,null,null,null,null,null,null,null,null,null,null,null,null,null,null,null,null,null,null,null,null,null,null,null,null,null,null,null,null,null,null,{"$f":"COUNTA(#REF!)","v":1}]
[null,null,null,null,null,null,null,null,null,null,null,null,null,null,null,null,null,null,null,null,null,null,null,null,null,null,null,null,null,null,null,null,null,{"$f":"COUNTA(#REF!)","v":1}]
[null,null,null,null,null,null,null,null,null,null,null,null,null,null,null,null,null,null,null,null,null,null,null,null,null,null,null,null,null,null,null,null,null,{"$f":"COUNTA(#REF!)","v":1}]
[null,null,{"$f":"SUBTOTAL(103,Janvier!$C$7:$C$46)","v":0},{"$f":"SUBTOTAL(103,Janvier!$D$7:$D$46)","v":0},{"$f":"SUBTOTAL(103,Janvier!$E$7:$E$46)","v":0},{"$f":"SUBTOTAL(103,Janvier!$F$7:$F$46)","v":0},{"$f":"SUBTOTAL(103,Janvier!$G$7:$G$46)","v":0},{"$f":"SUBTOTAL(103,Janvier!$H$7:$H$46)","v":0},{"$f":"SUBTOTAL(103,Janvier!$I$7:$I$46)","v":0},{"$f":"SUBTOTAL(103,Janvier!$J$7:$J$46)","v":0},{"$f":"SUBTOTAL(103,Janvier!$K$7:$K$46)","v":0},{"$f":"SUBTOTAL(103,Janvier!$L$7:$L$46)","v":0},{"$f":"SUBTOTAL(103,Janvier!$M$7:$M$46)","v":0},{"$f":"SUBTOTAL(103,Janvier!$N$7:$N$46)","v":0},{"$f":"SUBTOTAL(103,Janvier!$O$7:$O$46)","v":0},{"$f":"SUBTOTAL(103,Janvier!$P$7:$P$46)","v":0},{"$f":"SUBTOTAL(103,Janvier!$Q$7:$Q$46)","v":0},{"$f":"SUBTOTAL(103,Janvier!$R$7:$R$46)","v":0},{"$f":"SUBTOTAL(103,Janvier!$S$7:$S$46)","v":0},{"$f":"SUBTOTAL(103,Janvier!$T$7:$T$46)","v":0},{"$f":"SUBTOTAL(103,Janvier!$U$7:$U$46)","v":0},{"$f":"SUBTOTAL(103,Janvier!$V$7:$V$46)","v":0},{"$f":"SUBTOTAL(103,Janvier!$W$7:$W$46)","v":0},{"$f":"SUBTOTAL(103,Janvier!$X$7:$X$46)","v":0},{"$f":"SUBTOTAL(103,Janvier!$Y$7:$Y$46)","v":0},{"$f":"SUBTOTAL(103,Janvier!$Z$7:$Z$46)","v":0},{"$f":"SUBTOTAL(103,Janvier!$AA$7:$AA$46)","v":0},{"$f":"SUBTOTAL(103,Janvier!$AB$7:$AB$46)","v":0},{"$f":"SUBTOTAL(103,Janvier!$AC$7:$AC$46)","v":0},{"$f":"SUBTOTAL(103,Janvier!$AD$7:$AD$46)","v":0},{"$f":"SUBTOTAL(103,Janvier!$AE$7:$AE$46)","v":0},{"$f":"SUBTOTAL(103,Janvier!$AF$7:$AF$46)","v":0},{"$f":"SUBTOTAL(103,Janvier!$AG$7:$AG$46)","v":0},{"$f":"SUBTOTAL(109,Janvier[Total des jours])","v":40}]

{"sheet":"Janvier 2024","index":1,"n_rows":54,"n_cols":33,"rows_kept":54,"cut":false,"hidden":false,"merged":[[1,3,1,4],[1,6,1,8],[1,10,1,13],[1,18,1,21],[3,2,3,32]]}
["Calendrier des locations"]
["Clé de codage",null,"A","Arrivée",null,"D","Départ",null,null,"D/A","Départ Arrivée simul",null,null,null,"caro","Sabine","Bénicia","Laurène","Raïssa"]
[]
["Janvier",null,"Dates des réservations"]
[null,null,{"$f":"TEXT(WEEKDAY(DATE(AnnéeCalendrier24,1,1),1),\"jjj\")","v":"lun"},{"$f":"TEXT(WEEKDAY(DATE(AnnéeCalendrier24,1,2),1),\"jjj\")","v":"mar"},{"$f":"TEXT(WEEKDAY(DATE(AnnéeCalendrier24,1,3),1),\"jjj\")","v":"mer"},{"$f":"TEXT(WEEKDAY(DATE(AnnéeCalendrier24,1,4),1),\"jjj\")","v":"jeu"},{"$f":"TEXT(WEEKDAY(DATE(AnnéeCalendrier24,1,5),1),\"jjj\")","v":"ven"},{"$f":"TEXT(WEEKDAY(DATE(AnnéeCalendrier24,1,6),1),\"jjj\")","v":"sam"},{"$f":"TEXT(WEEKDAY(DATE(AnnéeCalendrier24,1,7),1),\"jjj\")","v":"dim"},{"$f":"TEXT(WEEKDAY(DATE(AnnéeCalendrier24,1,8),1),\"jjj\")","v":"lun"},{"$f":"TEXT(WEEKDAY(DATE(AnnéeCalendrier24,1,9),1),\"jjj\")","v":"mar"},{"$f":"TEXT(WEEKDAY(DATE(AnnéeCalendrier24,1,10),1),\"jjj\")","v":"mer"},{"$f":"TEXT(WEEKDAY(DATE(AnnéeCalendrier24,1,11),1),\"jjj\")","v":"jeu"},{"$f":"TEXT(WEEKDAY(DATE(AnnéeCalendrier24,1,12),1),\"jjj\")","v":"ven"},{"$f":"TEXT(WEEKDAY(DATE(AnnéeCalendrier24,1,13),1),\"jjj\")","v":"sam"},{"$f":"TEXT(WEEKDAY(DATE(AnnéeCalendrier24,1,14),1),\"jjj\")","v":"dim"},{"$f":"TEXT(WEEKDAY(DATE(AnnéeCalendrier24,1,15),1),\"jjj\")","v":"lun"},{"$f":"TEXT(WEEKDAY(DATE(AnnéeCalendrier24,1,16),1),\"jjj\")","v":"mar"},{"$f":"TEXT(WEEKDAY(DATE(AnnéeCalendrier24,1,17),1),\"jjj\")","v":"mer"},{"$f":"TEXT(WEEKDAY(DATE(AnnéeCalendrier24,1,18),1),\"jjj\")","v":"jeu"},{"$f":"TEXT(WEEKDAY(DATE(AnnéeCalendrier24,1,19),1),\"jjj\")","v":"ven"},{"$f":"TEXT(WEEKDAY(DATE(AnnéeCalendrier24,1,20),1),\"jjj\")","v":"sam"},{"$f":"TEXT(WEEKDAY(DATE(AnnéeCalendrier24,1,21),1),\"jjj\")","v":"dim"},{"$f":"TEXT(WEEKDAY(DATE(AnnéeCalendrier24,1,22),1),\"jjj\")","v":"lun"},{"$f":"TEXT(WEEKDAY(DATE(AnnéeCalendrier24,1,23),1),\"jjj\")","v":"mar"},{"$f":"TEXT(WEEKDAY(DATE(AnnéeCalendrier24,1,24),1),\"jjj\")","v":"mer"},{"$f":"TEXT(WEEKDAY(DATE(AnnéeCalendrier24,1,25),1),\"jjj\")","v":"jeu"},{"$f":"TEXT(WEEKDAY(DATE(AnnéeCalendrier24,1,26),1),\"jjj\")","v":"ven"},{"$f":"TEXT(WEEKDAY(DATE(AnnéeCalendrier24,1,27),1),\"jjj\")","v":"sam"},{"$f":"TEXT(WEEKDAY(DATE(AnnéeCalendrier24,1,28),1),\"jjj\")","v":"dim"},{"$f":"TEXT(WEEKDAY(DATE(AnnéeCalendrier24,1,29),1),\"jjj\")","v":"lun"},{"$f":"TEXT(WEEKDAY(DATE(AnnéeCalendrier24,1,30),1),\"jjj\")","v":"mar"},{"$f":"TEXT(WEEKDAY(DATE(AnnéeCalendrier24,1,31),1),\"jjj\")","v":"mer"}]
["Nom du logement","Colonne1","1","2","3","4","5","6","7","8","9","10","11","12","13","14","15","16","17","18","19","20","21","22","23","24","25","26","27","28","29","30","31"]
["Logement 1",null,null,null,null,null,null,null,null,"D","A",null,null,null,null,null,null,null,null,null,null,null,null,null,null,null,null,null,null,null,null,"D"]
[null,"Ménage"]
[null,"Gestion"]
[null,"Travaux"]
["Logement 2",null,"A","D",null,"A",null,null,null,null,"D/A",null,null,null,null,null,null,null,null,null,"D",null,"A"]
[null,"Ménage"]
[null,"Gestion"]
[null,"Travaux"]
["Logement 3",null,null,"D/A",null,null,null,null,null,null,null,null,null,null,null,null,null,null,null,null,null,"D","A",null,null,null,null,"D","A",null,null,null,"D"]
[null,"Ménage"]
[null,"Gestion"]
[null,"Travaux"]
["Logement 4",null,null,null,null,"D/A",null,null,null,null,null,null,null,null,null,"D",null,null,null,null,null,"A"]
[null,"Ménage"]
[null,"Gestion"]
[null,"Travaux"]
["Logement 5",null,null,null,null,null,null,null,null,null,null,null,null,null,null,null,null,null,null,null,null,null,null,null,null,null,null,"A",null,null,null,null,"D"]
[null,"Ménage"]
[null,"Gestion"]
[null,"Travaux"]
["Logement 6",null,null,null,null,null,null,null,null,null,null,null,null,null,null,null,"A",null,null,null,null,"D",null,null,null,null,null,null,null,null,null,"A"]
[null,"Ménage"]
[null,"Gestion"]
[null,"Travaux"]
["Logement 7"]
[null,"Ménage"]
[null,"Gestion"]
[null,"Travaux"]
["Logement 8",null,null,null,null,null,null,null,null,null,null,null,null,null,null,"D",null,null,null,null,null,null,null,"A"]
[null,"Ménage"]
[null,"Gestion"]
[null,"Travaux"]
["Logement 9",null,null,null,null,"D",null,"A",null,null,null,"D",null,null,"A",null,null,null,null,null,null,"D",null,null,null,null,null,null,null,"A"]
[null,"Ménage"]
[null,"Gestion"]
[null,"Travaux"]
["Logement 10",null,null,null,null,null,"D/A",null,null,null,null,null,null,"D",null,null,"A"]
[null,"Ménage"]
[null,"Gestion"]
[null,"Travaux"]
["Logement 11",null,null,null,"D",null,null,"A",null,null,null,null,null,"D","A",null,null,null,null,"D",null,null,"A"]
[null,"Ménage"]
[null,"Gestion"]
[null,"Travaux",null,null,null,null,"demo ouisnet"]
["Logement 12"]
[null,"Ménage"]
[null,"Gestion"]
[null,"Travaux"]

{"sheet":"synthèse","index":2,"n_rows":19,"n_cols":5,"rows_kept":19,"cut":false,"hidden":false,"merged":[[15,0,18,0],[6,0,8,0],[10,0,14,0]]}
[null,null,null,"Lexique"]
["Filtre de telle date à telle date",null,null,"Lettre A = Arrivée","Lettre D = Départ"]
[" du 1/01 au 5/01",null,null,"Lettres D/A = Départ/Arrivée"]
[]
["Date  (avec possibilité de filter) ","Type d'activité (avec possibilité de filtrer) Juste A, D, Ménage (les travaux et Gestion ne m'intéressent pas) et possibilité de trier en affichage : les D/A d'abord, les D ensuite, Les A ensuite","Nom du logement (avec possibilité de filter) "]
["Lundi 1","A","Logement 2"]
["Mardi 2","D","Logement 2"]
[null,"D/A","Logement 3"]
[null,"Ménage ","Logement 3"]
["Mercredi 3","D","Logement 11"]
["Jeudi 4","D/A","Logement 4"]
[null,"D","Logement 9"]
[null,"A","Logement 2"]
[null,"Ménage ","Logement 2"]
[null,"Ménage ","Logement 4"]
["Vendredi 5","D/A","Logement 10"]
[null,"Ménage ","Logement 9"]
[null,"Ménage ","Logement 10"]
[null,"Ménage ","Logement 11"]

{"sheet":"Employée","index":3,"n_rows":3,"n_cols":4,"rows_kept":3,"cut":false,"hidden":true,"merged":[]}
["Travaux effectués par",null,null,"en"]
[]
["Logement","Tâche","Date"]

{"sheet":"Datas","index":4,"n_rows":13,"n_cols":7,"rows_kept":13,"cut":false,"hidden":true,"merged":[]}
[null,null,"Période",null,"Noms"]
[null,null,"janv 23",null,"EMMA"]
[null,null,"février 23",null,"SABINE",null,"https://forum.excel-pratique.com/excel/lecture-des-coordonnees-d-une-cellule-en-tetes-ligne-et-colonne-186207"]
[null,null,"mars 23",null,"BENICIA"]
[null,null,"avril 23",null,"CARO"]
[null,null,"mai 23"]
[null,null,"juin 23"]
[null,null,"juillet 23"]
[null,null,"août 23"]
[null,null,"septembre 23"]
[null,null,"octobre 23"]
[null,null,"novembre 23"]
[null,null,"décembre 23"]